Cogmind - Beta 14 @@@ ROGUE MODE // 2024.08.07 @ 19:21:53 Player: Andru7428 Result: Destroyed by KL-L83(R) with Subdweller Beam Cannon Performance ------------- Evolutions (0) 0 Regions Visited (2) 400 Robots Destroyed (39) 195 Value Destroyed (932) 932 Prototype IDs (13) 260 Alien Tech Used (0) 0 Bonus (0) 0 TOTAL SCORE: 1787 Bonus ------- None Cogmind --------- Core Integrity 0/250 Matter 155/300 Energy 125/125 System Corruption 3% Temperature Cool (16) Movement Core (450) Ox8 Location -10/Subcaves Parts ------- > --- POWER (1) -------- Light Ion Engine > --- PROPULSION (2) --- Wheel > --- UTILITY (2) ------ Large Storage Unit Subdweller Optics > --- WEAPON (2) ------- Medium Laser > --- INVENTORY (15) --- Subdweller Power Source Meta Core Disposable Heat Sink Medium Matter Pod (0) Subdweller Laser Subdweller Beam Cannon Subdweller Machine Gun Subdweller Machine Gun Grenade Launcher Subdweller Shrapnel Launcher Piercing Trap Peak State ------------ > --- POWER ------------ Improved Ion Engine > --- PROPULSION ------- Compact Wheel Subdweller Monowheel > --- UTILITY ---------- Scrap Shield > --- WEAPON ----------- Battle Rifle Barrage Gun > --- INVENTORY -------- Meta Core Disposable Heat Sink Medium Laser Medium Laser Grenade Launcher [Rating: 15] Favorites ----------- Power Light Ion Engine Engine Light Ion Engine Propulsion Aluminum Leg Treads Light Treads Leg Aluminum Leg Wheel Subdweller Monowheel Utility Large Storage Unit Device Seismic Detector Storage Large Storage Unit Protection Scrap Shield Weapon Medium Laser Energy Gun Medium Laser Ballistic Gun Battle Rifle Ballistic Cannon Battle Cannon Launcher Grenade Launcher Build | -11 -10 -10 ------- Run | Yrd Mat Sub Slots Evolved . | . . . Power . | . . . Propulsion . | . . . Utility . | . . . Weapon . | . . . Parts Attached 45 | 7 12 26 Power 5 | 1 1 3 Engine 5 | 1 1 3 Core . | . . . Reactor . | . . . Propulsion 10 | 2 2 6 Treads 3 | 2 . 1 Leg 2 | . 2 . Wheel 5 | . . 5 Hover . | . . . Flight . | . . . Utility 12 | 2 4 6 Device 6 | 1 2 3 Storage 5 | 1 2 2 Processor . | . . . Hackware . | . . . Protection 1 | . . 1 Artifact . | . . . Weapon 18 | 2 5 11 Energy Gun 7 | 1 4 2 Energy Cannon . | . . . Ballistic Gun 6 | 1 . 5 Ballistic Cannon 1 | . . 1 Launcher 4 | . 1 3 Special Weapon . | . . . Impact Weapon . | . . . Slashing Weapon . | . . . Piercing Weapon . | . . . Special Melee Weapon . | . . . Unidentified Prototypes . | . . . Parts Lost 12 | . 5 7 Power 2 | . 1 1 Propulsion 4 | . 1 3 Utility 2 | . 1 1 Weapon 4 | . 2 2 Highest Loss Streak 3 | . 2 3 To Critical Strikes . | . . . Average Slot Usage (%) 89 | . 96 86 Engine 13 | . 14 13 Treads 8 | . 22 2 Leg 10 | . 5 13 Wheel 7 | . . 10 Device 4 | . 10 2 Storage 11 | . 14 10 Protection 2 | . . 3 Energy Gun 14 | . 16 13 Ballistic Gun 9 | . 11 9 Ballistic Cannon 3 | . . 5 Peak Build Rating 15 | 7 7 15 Average Rating 9 | 4 6 10 On Entrance 4 | . 7 6 Naked Turns . | . . . Heaviest Build 35 | 13 28 35 Greatest Support 40 | 40 40 40 Greatest Overweight (x) 3 | 2 1 3 Average Overweight (x) . | . . . Largest Inventory Capacity 15 | 8 15 15 Average Capacity 10 | 7 10 11 Most Carried 15 | 6 9 15 Average Carried 7 | 4 7 7 Final Capacity 15 | 8 15 15 Final Carried 11 | 6 5 11 Class Distribution -------------------- 94% | Mutant 5% | Subdweller-Mutant Dominant Class ---------------- Mutant | -10/Materials Mutant | -10/Subcaves Resources | -11 -10 -10 ----------- Run | Yrd Mat Sub Matter Collected 1206 | 247 396 563 Remotely . | . . . Salvage Created 1147 | 49 577 521 Parts 77 | 8 31 38 Haulers Intercepted 2 | . 2 . Recyclers Shooed 1 | . 1 . Parts Field Recycled . | . . . Retrieved Matter . | . . . Parts Self-Destructed 8 | . . 8 Prevented . | . . . Kills | -11 -10 -10 ------- Run | Yrd Mat Sub Combat Hostiles Destroyed 29 | . 14 15 Guns 16 | . 11 5 Cannons 2 | . . 2 AOE 11 | . 3 8 Classes Destroyed 10 | 1 7 2 Worker 1 | . 1 . Builder 1 | . 1 . Tunneler 3 | 3 . . Hauler 2 | . 2 . Recycler 1 | . 1 . Watcher 2 | . 2 . Swarmer 11 | . 8 3 Grunt 8 | . 6 2 Sentry 1 | . . 1 Subdweller 9 | . . 9 Best Kill Streak 4 | 3 4 4 Combat Bots Only 4 | . 3 4 Max Kills in Single Turn 3 | 1 2 3 Gunslinging . | . . . Exploded 3 | . 2 3 Melee . | . . . Uniques/NPCs Destroyed . | . . . Combat | -11 -10 -10 -------- Run | Yrd Mat Sub Hostile Shots Fired 139 | . 69 70 Missed 26 | . 13 13 Damage Taken 2025 | . 697 1328 Core 269 | . 92 177 Absorbed by Shields . | . . . Core Remaining (%) 100 | 100 . . Volleys Fired 163 | 3 58 102 Largest 2 | 2 2 2 Hottest 100 | 70 100 100 Shots Fired 262 | 6 114 142 Gun 232 | 6 112 114 Cannon 16 | . . 16 Launcher 14 | . 2 12 Special . | . . . Kinetic 123 | 3 46 74 Thermal 126 | 3 66 57 Explosive 13 | . 2 11 Electromagnetic . | . . . Robot Hit Streak 21 | 4 11 21 Robot Miss Streak 3 | . 3 2 Penetration Max . | . . . Secondary Targets 1 | . . 1 Max Gunslinging Chain 1 | . . 1 Shots Hit Robots 176 | 4 74 98 Core Hits 61 | 3 30 28 Critical Kills 1 | . 1 . Critical Parts Destroyed 1 | . 1 . Critical Strikes 13 | 1 6 6 Burn 9 | 1 4 4 Destroy 3 | . 2 1 Blast 1 | . . 1 Melee Attacks . | . . . Impact . | . . . Slashing . | . . . Piercing . | . . . Sneak Attacks . | . . . Combat Hostiles . | . . . Follow-up Attacks . | . . . Damage Inflicted 3392 | 59 1426 1907 Guns 2080 | 59 967 1054 Cannons 168 | . . 168 Explosions 1135 | . 459 676 Melee . | . . . Ramming 9 | . . 9 Kinetic 1209 | 21 409 779 Thermal 1149 | 38 558 553 Explosive 1025 | . 459 566 Electromagnetic . | . . . Impact . | . . . Slashing . | . . . Piercing . | . . . Highest Corruption 3 | . 3 3 Average Corruption 2 | . 2 3 Corruption Purged . | . . . Corruption Blocked . | . . . Effects 53 | . 7 46 Message Errors 11 | . 2 9 Matter Fused 13 | . 1 12 Heat Flow Errors 6 | . . 6 Energy Discharges 4 | . 2 2 Parts Rejected 2 | . 1 1 Data Loss (minor) 11 | . 1 10 Data Loss (major) 4 | . . 4 Misfires 1 | . . 1 Weapon Failures 1 | . . 1 Overload Shots . | . . . Overflow Damage 20 | . 20 . Projectiles . | . . . Explosions 20 | . 20 . Melee . | . . . Knockbacks . | . . . Impact . | . . . Kinetic . | . . . Secondary . | . . . Self-Inflicted Damage 187 | . 148 39 Shots 5 | . 3 2 Rammed 3 | . . 3 Targets Rammed 3 | . . 3 Kicked . | . . . Crushed . | . . . Highest Temperature 256 | 9 160 256 Average Temperature 62 | 6 60 92 Received Heat Transfer 429 | . 174 255 Siege Activations . | . . . Robots Corrupted . | . . . Combat Hostiles . | . . . Parts Fried . | . . . Impact Corruptions . | . . . Robots Melted . | . . . Combat Hostiles . | . . . Parts Melted 3 | . 1 2 Heat Transferred 3996 | 185 1887 1924 Parts Sabotaged . | . . . Parts Stolen . | . . . Parts Stripped . | . . . Power Chain Reactions . | . . . Alert | -11 -10 -10 ------- Run | Yrd Mat Sub Peak Influence 313 | 15 313 . Initial 9 | . 9 . Average 150 | 4 164 . Maximum Alert Level 1 | . 1 . Low Security (%) 62 | 100 59 . Level 1 37 | . 40 . Level 2 . | . . . Level 3 . | . . . Level 4 . | . . . Level 5 . | . . . High Security . | . . . Max Security . | . . . Squads Dispatched 1 | . 1 . Investigation . | . . . Extermination . | . . . Reinforcement 1 | . 1 . Assault . | . . . Garrison . | . . . Intercept . | . . . Searches Triggered . | . . . Construction Impeded . | . . . Haulers Reinforced . | . . . Active Scanning Responses . | . . . Cargo Convoy Interrupts . | . . . Stealth | -11 -10 -10 --------- Run | Yrd Mat Sub Distress Signals 3 | . 3 . Communications Jammed . | . . . Distress Signals . | . . . Times Spotted 41 | . 25 16 Peak Tracking Total 4 | . 4 3 Tactical Retreats 4 | . 4 . Traps | -11 -10 -10 ------- Run | Yrd Mat Sub Traps Triggered 3 | . 2 1 Indirectly . | . . . Trap Hack Attempts . | . . . Triggered . | . . . Disarmed . | . . . Reprogrammed . | . . . Reused . | . . . Traps Extracted . | . . . Installed . | . . . Triggered . | . . . Most Traps Carried 1 | . . 1 Machines | -11 -10 -10 ---------- Run | Yrd Mat Sub Machines Disabled 6 | . 5 1 Max in Single Turn 3 | . 3 1 Machines Repaired . | . . . Machines Dismantled . | . . . Machines Sabotaged . | . . . Overloaded Fab Kills . | . . . Hacking | -11 -10 -10 --------- Run | Yrd Mat Sub Machines Accessed 4 | . 3 1 Terminals 3 | . 3 . Fabricators . | . . . Repair Stations . | . . . Recycling Units . | . . . Scanalyzers . | . . . Garrison Access . | . . . Total Hacks 8 | . 7 1 Successful 4 | . 3 1 Failed 4 | . 4 . Catastrophic 1 | . 1 . Database Lockouts . | . . . Manual 2 | . 2 . Terminals 7 | . 7 . Fabricators . | . . . Repair Stations . | . . . Recycling Units . | . . . Scanalyzers . | . . . Garrison Access . | . . . Terminal Hacks 4 | . 3 1 Robot Analysis 1 | . 1 . Prototype ID Bank 1 | . 1 . Alert Level 1 | . 1 . Derelict Proto ID Bank 1 | . . 1 Fabricator Hacks . | . . . Repair Station Hacks . | . . . Recycling Unit Hacks . | . . . Scanalyzer . | . . . Garrison Access Hacks . | . . . Unauthorized Hacks . | . . . Terminals . | . . . Fabricators . | . . . Repair Stations . | . . . Recycling Units . | . . . Scanalyzers . | . . . Garrison Access . | . . . Data Cores Recovered . | . . . Used . | . . . Hacking Detections 3 | . 3 . Full Trace Events . | . . . Feedback Events . | . . . Feedback Blocked . | . . . Robot Schematics Acquired . | . . . Robots Built . | . . . Authchips . | . . . Time . | . . . Total Robot Build Rating . | . . . Part Schematics Acquired . | . . . Parts Built . | . . . Authchips . | . . . Time . | . . . Total Part Build Rating . | . . . Parts Repaired . | . . . Time . | . . . Parts Recycled . | . . . Recycled Matter . | . . . Retrieved Matter . | . . . Retrieved Components . | . . . Parts Scanalyzed . | . . . Part Schematics Acquired . | . . . Parts Damaged . | . . . Bothacking | -11 -10 -10 ------------ Run | Yrd Mat Sub Used RIF Installer . | . . . Robots Hacked . | . . . Non-combat . | . . . Combat . | . . . Robot Hacks Applied . | . . . Relay Couplers Released . | . . . Fabnet Peak Effective % . | . . . Robots Rewired . | . . . Allies Hacked . | . . . Hacks Repelled . | . . . Allies | -11 -10 -10 -------- Run | Yrd Mat Sub Total Allies . | . . . Largest Group . | . . . Highest-Rated Group . | . . . Highest-Rated Ally . | . . . Total Orders . | . . . Ally Attacks . | . . . Total Damage . | . . . Kills . | . . . Allies Corrupted . | . . . Allies Melted . | . . . Intel | -11 -10 -10 ------- Run | Yrd Mat Sub Robot Analysis Total 1 | . 1 . Derelict Logs Recovered 3 | . . 3 Drone Launches . | . . . Drone Recoveries . | . . . Exploration | -11 -10 -10 ------------- Run | Yrd Mat Sub Turns Passed 3392 | 94 958 2340 Spaces Moved 1965 | 51 437 1477 Core 26 | 13 . 13 Treads 397 | 38 359 . Legs 584 | . 78 506 Wheels 958 | . . 958 Hover . | . . . Flight . | . . . Fastest Speed 50 | 50 160 80 Average Speed 142 | 135 165 135 Slowest Speed 200 | 160 190 200 Overloaded Moves . | . . . Propulsion Burnouts . | . . . Robots Hopped . | . . . Cave-ins Triggered . | . . . Exploration Rate (%) 46 | 4 59 76 Regions Visited 2 Branch Regions 1 Pre-discovered Areas . | . . . Known Exits Taken . | . . . Unknown Exits Taken 2 | 1 1 . Scrap Searched 3 | . . 3 Spaces Dug . | . . . Terrain Destroyed 105 | . 45 60 Melee . | . . . Projectile . | . . . AOE 105 | . 45 60 Terrain Rammed . | . . . Walls Destroyed . | . . . Machines Disabled . | . . . Actions | -11 -10 -10 --------- Run | Yrd Mat Sub Total 2296 | 66 558 1672 Wait 60 | . 42 18 Move 1963 | 50 436 1477 Hop . | . . . Pick Up 32 | 6 5 21 Fast Attach 20 | 7 1 12 Attach 6 | . 4 2 Detach 4 | . . 4 Swap 19 | . 7 12 Drop 17 | . 5 12 Fire 163 | 3 58 102 Melee . | . . . Ram 3 | . . 3 Kick . | . . . Crush . | . . . Escape Stasis . | . . . Rewire . | . . . Trap . | . . . Miscellaneous 9 | . . 9 Route ------- -11/Scrapyard -10/Materials (discovered 3 exits: [*Mat] / [*Min] / *Sub) -10/Subcaves (discovered 3 exits: [*Mat x2] / Rec) History --------- Turn | Location | Event 27 | -11/Scrapyard | Discovered new exit (range 16) 95 | -11/Scrapyard | Entered Materials 312 | -10/Materials | Build established: Mutant 387 | -10/Materials | Discovered new exit (range 14) 713 | -10/Materials | Discovered new exit (range 16) 1018 | -10/Materials | Discovered new exit (range 6) 1053 | -10/Materials | Entered Subcaves 1354 | -10/Subcaves | Visited 4L-MR0's lab 1376 | -10/Subcaves | Found Meta Core 1478 | -10/Subcaves | A swath of the cavern ceiling suddenly collapsed 1595 | -10/Subcaves | Learned Materials machine intel 2209 | -10/Subcaves | Shifting Twisted Machinery released Battle Rifle 2227 | -10/Subcaves | Discovered new exit (range 8) 2352 | -10/Subcaves | Shifting Twisted Machinery released Barrage Gun 2446 | -10/Subcaves | Ambushed by Subdweller buried in earth 2452 | -10/Subcaves | Ambushed by Subdweller buried in earth 2660 | -10/Subcaves | Discovered new exit (range 15) 2744 | -10/Subcaves | Core integrity fell below 50% 2813 | -10/Subcaves | Lost 3 parts (1n1u1w) 3167 | -10/Subcaves | Identified exit to Recycling 3374 | -10/Subcaves | Core integrity fell below 20% 3393 | -10/Subcaves | Destroyed by KL-L83(R) with Subdweller Beam Cannon Last Messages --------------- 03038_ Acquired Sub. Machine Gun. 03042_ Acquired Sub. Laser. 03058_ IB3CFJWJMN150, KTB|T#QHZK V 03102_ System corrupted: Heat flow error (+296). 03111_ Subatomizers dissect the Broken Sub. Monowheel. 03137_ JDRFF581A2=F:AK|&:NRT2PV:WHPXA 03159_ System corrupted: Component data lost. 03167_ Acquired derelict log, extracted data. Loading 1 Subcaves exit... 03189_ System corrupted: Heat flow error (+141). 03199_ Sub. Power Source shoots sparks and powers down. 03217_ System corrupted: Component data lost. 03219_ ZR-D1Y(u) deconstructs Twisted Machinery. 03339_ System corrupted: Component data lost. 03353_ Acquired Sub. Optics. 03356_ Acquired Sub. Machine Gun. 03369_ System corrupted: Matter fused (-8). 03373_ 7X-4UB(R) destroyed. 03389_ Lgt. Treads destroyed. 03391_ Battle Rifle destroyed. Map ----- +----------------------------------------------------+ | ##???????????????????????###### | | ## #?????????????????????????????# | | ## ##?????????????????????????????## ## | | ### #???????????????????????????????#### | | #?## #?????????????????????????????????## | | ??###??????????????????????????????#### | | #??????????????????????????????????# | | ##??????????????????????????????????# | | #???????????????????????????????????# | | #??????????????????????????????????## #### | | #??????????????????????????????????# #??# | | #??????????????????????????????????## #??? | | #???????????????????????????????????## ##?? | | ?????????????????????????????????????## #?? | | ??????????????????????????????????????### #?? | | ????????????????????????????????????????# #?? | | ????????????????????????????????????????# ##? | | ?????????? ?????????????????????????????# ## | | ??????????"" ####??????????????????????## ## | | ???????? """ ;;;;????????????????###?## ### | | ???????? ;;#######?##????## ### ##?# | | ???????????# && ; ; # ## #????# ##?## | | ???????????#" %&! #?????## ##### | | ????????????# [& #??????# #?# | | ?????????????????????# R #??##### #?## | | ?????????????????????####@ ####" ##& #??## | | ????????????????????## ## "& & ##??# | | ???????????????????## "" & ""#??## | | ???????????????????# "##???# | | ???????????????????# ## ### ##????# | | ???????????????????# ## ##?##"" #?????## | | ???????????????????# #######???## #?????## | | ???????????????????#####???????????# #????# | | ???????????????????????????????????# ???## | | ??????????????????????????????????? """ ???# | | ???????????????????????????????????#### ??# | | ???????????????????????????????????????# #?# ## | | ????????????????????????????????????????#####?###? | | ?????????????????????????????????????????????????? | | ?????????????????????????????????????????????????? | | ?????????????????????????????????????????????????? | | ?????????????????????????????????????????????????? | | ?????????????????????????????????????????????????? | | ?????????????????????????????????????????????????? | | ?????????????????????????????????????????????????? | | ?????????????????????????????????????????????????? | | ?????????????????????????????????????????????????? | | ?????????????????????????????????????????????????? | | ?????????????????????????????????????????????????? | | ?????????????????????????????????????????????????? | +----------------------------------------------------+ Best States ------------- Heat Dissipation 25 Coolant Potential 50 Energy Generation 15 Energy Capacity 265 Matter Stores 300 Matter Capacity 400 Sight Range 21 Terrain Scan Density 10 Armor Coverage 800 Evasion (%) 45 Recoil Reduction 2 Item Schematics ----------------- None Robot Schematics ------------------ None Fabricated ------------ Nothing Alien Tech Used ----------------- None Achievements -------------- None Challenges ------------ None Game ------ Seed RecoilStealthReactor Manual? 0 Play Time 00:27:18 Cumulative 207.3 hours Start 2024.08.07 @ 11:22:49 End 2024.08.07 @ 19:21:53 Sessions 2 Manual Loads 0 Difficulty Rogue Special Mode None Game No. 158 Rogue 158 Adventurer 0 Explorer 0 Win Type - Total 3 Types 3/0/0/0/0/0/0/0/0 Lore% 54 Gallery% 70 Achievement% 62 Wizard Run 0 Options --------- Layout 0 ASCII 0 Keyboard 1 Movement Numpad Keybinds 0 Fullscreen 1 Font 18/SmallcapsGlow Map View 76x50 Zoom Use 0% Tactical HUD 1 Map Filters NONE Filters NONE Steam 1 RUN: cd5f4aef-ce15-428e-a8d8-a0ae6f14119b